bitfinex/quotes_BTCUSD_20250408
["timestamp","ask_amount","ask_price","bid_price","bid_amount"]
[1744121108286,0.00012488,80048.0,80046.0,0.249854]
[1744121108487,0.00012488,80048.0,80047.0,0.31847064]
[1744121108685,0.00012488,80048.0,80047.0,0.31547665]
[1744121108892,0.00012488,80048.0,80047.0,0.30597864]
[1744121109132,8.8e-07,80048.0,80047.0,1.36888579]
[1744121109437,0.0001682,80090.0,80068.0,0.27681685]
[1744121109438,3e-07,80069.0,80068.0,0.27681685]
[1744121109593,3e-07,80069.0,80068.0,2.32681764]
[1744121109792,0.0001682,80090.0,80068.0,2.32681764]
[1744121109793,0.0001682,80090.0,80074.0,0.262256]
[1744121109995,0.0001682,80090.0,80074.0,1.15711764]
[1744121110208,0.0001682,80090.0,80088.0,0.61675185]
[1744121110398,0.0001682,80090.0,80088.0,1.33679264]
[1744121110777,0.0001682,80090.0,80088.0,1.00599988]
[1744121111006,0.0001682,80090.0,80088.0,0.96173903]
[1744121111216,0.2498872,80090.0,80088.0,0.89378888]
[1744121111414,0.0001682,80090.0,80088.0,0.91490295]
[1744121111615,0.0001682,80090.0,80088.0,1.1791688]
[1744121111771,0.0001682,80090.0,80088.0,0.7669578]
[1744121111972,0.0001682,80090.0,80088.0,0.76041695]
[1744121111973,0.2508903,80089.0,80088.0,0.76041695]
[1744121112628,0.0011683,80089.0,80088.0,0.3463548]
[1744121112855,0.0011683,80089.0,80088.0,0.6085658]
[1744121113061,0.0011683,80089.0,80088.0,0.58539688]
[1744121113275,0.0021683,80089.0,80088.0,0.58091088]
[1744121113472,0.0021683,80089.0,80088.0,0.59339688]
[1744121113751,0.0021683,80089.0,80088.0,0.60793773]
[1744121113904,0.0021683,80089.0,80088.0,0.76949581]
[1744121114104,0.0021683,80089.0,80088.0,0.792612]
[1744121115536,0.2497974,80119.0,80108.0,0.27668585]
[1744121115537,0.0001684,80119.0,80108.0,0.27668585]
[1744121115743,0.0041248,80109.0,80108.0,2.03280664]
[1744121115917,0.0041248,80109.0,80108.0,2.06748091]
[1744121116121,0.0001684,80119.0,80108.0,2.06748091]
[1744121116122,4e-07,80119.0,80118.0,0.752112]
[1744121116324,4e-07,80119.0,80118.0,1.31197364]
[1744121116522,0.004,80139.0,80138.0,0.412047]
[1744121116851,0.25369076,80139.0,80138.0,0.72934657]
[1744121117022,0.26616876,80139.0,80138.0,0.30585864]
[1744121117223,0.25369076,80139.0,80138.0,0.14937483]
[1744121117810,0.25369076,80139.0,80138.0,0.12625864]
[1744121118257,0.26616876,80139.0,80138.0,0.12625864]
[1744121118569,0.249578,80135.0,80134.0,0.1796]
[1744121118803,0.262056,80135.0,80134.0,0.30585864]
[1744121119403,0.249578,80135.0,80134.0,0.30585864]
[1744121119960,0.249578,80135.0,80134.0,0.31085864]
[1744121120322,0.00412476,80139.0,80137.0,0.262048]
[1744121120508,0.00412476,80139.0,80138.0,0.15577266]
[1744121120724,0.00412476,80139.0,80138.0,0.14079949]
[1744121121071,0.00412476,80139.0,80138.0,0.15327749]
[1744121121493,0.00412476,80139.0,80138.0,0.12625864]
[1744121121708,0.26616876,80139.0,80138.0,0.54032079]
[1744121121909,0.60616876,80139.0,80138.0,0.41406215]
[1744121122220,0.26616876,80139.0,80138.0,0.41906215]
[1744121122986,0.012481,80121.0,80109.0,0.41406215]
[1744121123193,0.249587,80133.0,80123.0,0.249613]
[1744121123403,0.00412476,80139.0,80138.0,0.004]
[1744121123617,0.25369076,80139.0,80138.0,0.13025864]
[1744121123832,0.00412476,80139.0,80138.0,0.13025864]
[1744121124130,0.00412476,80139.0,80138.0,0.12625864]
[1744121124330,0.00412476,80139.0,80138.0,0.12875407]
[1744121124569,0.00412476,80139.0,80138.0,0.12625864]
[1744121125200,0.01660276,80139.0,80138.0,0.12625864]
[1744121125408,0.00412476,80139.0,80138.0,0.12625864]
[1744121125951,0.00412476,80139.0,80138.0,0.13025864]
[1744121126161,0.00412476,80139.0,80138.0,0.15727749]
[1744121126379,0.00412476,80139.0,80138.0,0.16901348]
[1744121126588,7.6e-07,80139.0,80138.0,1.93815979]
[1744121126957,7.6e-07,80139.0,80138.0,1.9356647]
[1744121127322,8e-05,80150.0,80149.0,0.412011]
[1744121127635,0.249432,80182.0,80172.0,0.012473]
[1744121127803,0.249445,80178.0,80173.0,0.54057864]
[1744121128013,0.012471,80186.0,80174.0,0.0024943]
[1744121128014,0.249443,80179.0,80174.0,0.0024943]
[1744121128333,0.249451,80176.0,80175.0,0.12625864]
[1744121128724,0.261923,80176.0,80175.0,0.12625864]
[1744121129300,0.012471,80182.0,80175.0,0.12625864]
[1744121129301,0.4118,80215.0,80183.0,0.012471]
[1744121129609,0.01247,80192.0,80184.0,0.1287527]
[1744121129813,0.01247,80192.0,80184.0,0.5430727]
[1744121130013,0.012471,80185.0,80184.0,0.54057864]
[1744121130263,0.012471,80185.0,80184.0,0.41432]
[1744121130630,0.012471,80185.0,80184.0,0.43714301]
[1744121131061,0.352471,80185.0,80184.0,0.02282301]
[1744121131449,0.012471,80180.0,80173.0,0.00938144]
[1744121131659,0.249451,80176.0,80174.0,0.54057864]
[1744121131861,0.249426,80184.0,80170.0,0.18376]
[1744121131862,0.00041603,80200.0,80175.0,0.56341477]
[1744121132062,0.00041603,80200.0,80180.0,0.12625864]
[1744121132298,0.00041603,80200.0,80196.0,0.012469]
[1744121132472,0.00041603,80200.0,80199.0,0.012468]
[1744121132677,0.00041603,80200.0,80199.0,0.16405608]
[1744121132886,3e-08,80200.0,80199.0,0.74291693]
[1744121133089,3e-08,80200.0,80199.0,0.74042362]
[1744121133293,3e-08,80200.0,80199.0,1.17562362]
[1744121133674,0.0001684,80216.0,80215.0,0.261795]
[1744121133965,0.00029317,80216.0,80215.0,0.81691449]
[1744121134174,0.00029317,80216.0,80215.0,0.56758549]
[1744121134385,0.00029317,80216.0,80215.0,0.59042162]
[1744121134818,2e-07,80220.0,80219.0,0.76632285]
[1744121135037,2e-07,80220.0,80219.0,1.32927635]
[1744121135254,8e-05,80258.0,80219.0,1.32927635]
[1744121135255,8e-05,80258.0,80228.0,0.42629385]
[1744121135478,1e-06,80229.0,80228.0,1.35461122]
[1744121135683,8e-05,80258.0,80254.0,0.01246]
[1744121135892,0.00020468,80258.0,80255.0,0.56763433]
[1744121136094,0.00020468,80258.0,80255.0,0.33877477]
[1744121136297,0.00020468,80258.0,80256.0,0.03424629]
[1744121136560,0.24940168,80258.0,80257.0,0.12625864]
[1744121136772,0.00020468,80258.0,80257.0,0.14909477]
[1744121137137,0.01266368,80258.0,80257.0,0.14909477]
[1744121137337,0.01266368,80258.0,80257.0,0.16050493]
[1744121138128,0.261655,80258.0,80257.0,0.01141016]
[1744121139161,0.601655,80258.0,80257.0,0.01141016]
[1744121139359,0.261691,80247.0,80235.0,0.1956]
[1744121139563,0.249233,80246.0,80239.0,0.012462]
[1744121139715,0.249247,80242.0,80240.0,0.12625864]
[1744121140137,0.249214,80253.0,80240.0,0.12625864]
[1744121140361,0.249218,80251.0,80244.0,0.249237]
[1744121140564,0.00170631,80259.0,80258.0,0.012459]
[1744121140769,0.00170631,80259.0,80258.0,0.12875026]
[1744121140973,0.01246,80254.0,80245.0,0.19552]
[1744121141171,0.249249,80241.0,80237.0,0.19552]
[1744121141415,0.012461,80248.0,80240.0,0.12638332]
[1744121141622,0.249249,80241.0,80240.0,0.00012468]
[1744121141824,0.012461,80248.0,80240.0,0.00012468]
[1744121141825,0.001,80251.0,80247.0,0.012461]
[1744121142026,0.001,80251.0,80240.0,0.12638332]
[1744121142027,0.001,80251.0,80248.0,0.12625864]
[1744121142358,0.261711,80241.0,80240.0,0.19560468]
[1744121142568,0.012461,80247.0,80241.0,0.261711]
[1744121142776,0.261682,80250.0,80242.0,0.12625864]
[1744121143029,0.249239,80245.0,80242.0,0.12625864]
[1744121143732,0.249242,80244.0,80242.0,0.12625864]
[1744121144169,0.012462,80243.0,80242.0,0.12825864]
[1744121144391,0.012462,80243.0,80242.0,0.002]
[1744121144756,0.012462,80241.0,80240.0,0.00012468]
[1744121146374,0.352462,80241.0,80240.0,0.00012468]
[1744121146575,0.37541456,80241.0,80240.0,6.8e-07]
[1744121146781,0.5016732,80241.0,80240.0,6.8e-07]
[1744121146987,0.37541456,80241.0,80240.0,6.8e-07]
[1744121147382,0.38041456,80241.0,80240.0,0.00100068]
[1744121147607,0.38941456,80241.0,80240.0,0.00192053]
[1744121147852,0.38441456,80241.0,80240.0,0.001]
[1744121148065,0.012465,80223.0,80214.0,0.012466]
[1744121148263,0.249322,80218.0,80215.0,0.54011737]
[1744121148419,0.249325,80217.0,80215.0,0.54011737]
[1744121148618,0.249324,80217.0,80215.0,0.54011737]
[1744121149029,0.03543747,80216.0,80215.0,0.41385873]
[1744121149233,0.03543747,80216.0,80206.0,0.41385873]
[1744121149234,0.261821,80207.0,80206.0,0.41385873]
[1744121149426,0.261821,80207.0,80206.0,0.54011737]
[1744121149758,0.28479247,80207.0,80206.0,0.54011737]
[1744121149927,0.249384,80198.0,80196.0,0.19548]
[1744121150149,0.012466,80215.0,80202.0,0.012468]
[1744121150293,0.012466,80215.0,80206.0,0.012467]
[1744121150500,0.02300383,80214.0,80212.0,0.012466]
[1744121150697,0.03546983,80214.0,80208.0,0.249351]
[1744121150894,0.249343,80211.0,80209.0,0.12625864]
[1744121151162,0.26181,80211.0,80209.0,0.12625864]
[1744121151333,0.249342,80212.0,80209.0,0.12625864]
[1744121151567,0.26181,80211.0,80209.0,0.12625864]
[1744121151774,0.261832,80204.0,80203.0,0.41385873]
[1744121151975,0.261832,80204.0,80203.0,0.54011737]
[1744121152183,0.261832,80204.0,80203.0,0.41385873]
[1744121152710,0.249341,80212.0,80207.0,0.249353]
[1744121152862,0.02303717,80211.0,80210.0,0.249345]
[1744121153065,0.02303717,80211.0,80210.0,0.39056385]
[1744121153287,0.02303717,80211.0,80210.0,0.12625864]
[1744121153469,0.249337,80213.0,80210.0,0.37560264]
[1744121153671,0.261793,80216.0,80211.0,0.12625864]
[1744121154025,0.249334,80214.0,80212.0,0.01148267]
[1744121154209,0.2618,80214.0,80213.0,0.12625864]
[1744121154567,0.2618,80214.0,80212.0,0.01148267]
[1744121154568,0.012466,80213.0,80212.0,0.01148267]
[1744121154930,0.27242433,80214.0,80212.0,0.01148267]
[1744121155067,0.02309033,80213.0,80212.0,0.01148267]
[1744121155250,0.02309033,80213.0,80212.0,0.12875193]
[1744121155456,0.02309033,80213.0,80212.0,0.12625864]
[1744121155862,0.261805,80212.0,80208.0,0.41385873]
[1744121156155,0.249348,80209.0,80208.0,0.41385873]
[1744121156396,0.02309033,80213.0,80210.0,0.249345]
[1744121156610,0.249333,80214.0,80211.0,0.12625864]
[1744121156836,0.02314619,80213.0,80211.0,0.12625864]
[1744121157062,0.02314619,80213.0,80212.0,0.012466]
[1744121157284,0.02314619,80213.0,80212.0,0.20505847]
[1744121157496,0.012463,80237.0,80218.0,0.012466]
[1744121157497,0.249306,80223.0,80218.0,0.012466]
[1744121157667,0.249306,80223.0,80219.0,0.12625864]
[1744121157821,0.249306,80223.0,80220.0,0.41385873]
[1744121158024,0.261766,80224.0,80221.0,0.12625864]
[1744121158228,0.261773,80222.0,80221.0,0.12625864]
[1744121158424,0.261776,80221.0,80220.0,0.41385873]
[1744121158859,0.28495169,80221.0,80220.0,0.41385873]
[1744121159250,0.62495169,80221.0,80220.0,0.41385873]
[1744121160089,0.62495169,80221.0,80220.0,0.41585873]
[1744121160518,0.27248669,80221.0,80220.0,0.41585873]
[1744121160720,0.62495169,80221.0,80220.0,0.41385873]
[1744121161157,0.62795169,80221.0,80220.0,0.41385873]
[1744121161577,0.604776,80221.0,80220.0,0.41385873]
[1744121162341,0.012468,80204.0,80203.0,0.41385873]
[1744121162546,0.601835,80203.0,80202.0,0.00012477]
[1744121162851,0.601835,80203.0,80202.0,7.7e-07]
[1744121163218,0.85434909,80203.0,80202.0,7.7e-07]
[1744121163405,0.6019,80183.0,80182.0,8e-07]
[1744121163603,0.72815864,80183.0,80182.0,8e-07]
[1744121163810,0.6019,80183.0,80182.0,8e-07]
[1744121164388,0.72815864,80183.0,80182.0,8e-07]
[1744121164594,0.75135408,80183.0,80182.0,8e-07]
[1744121165180,0.62509544,80183.0,80182.0,8e-07]
[1744121165465,0.62509544,80183.0,80182.0,0.0030008]
[1744121165817,0.62509544,80183.0,80182.0,8e-07]
[1744121166141,0.62509544,80183.0,80182.0,0.0020008]
[1744121166363,0.601923,80176.0,80174.0,0.1114321]
[1744121166566,0.352472,80175.0,80174.0,9e-07]
[1744121166801,0.012473,80172.0,80171.0,9e-07]
[1744121166917,0.72819464,80172.0,80171.0,9e-07]
[1744121167115,0.262001,80152.0,80149.0,0.0003358]
[1744121167522,0.02319544,80152.0,80149.0,0.0003358]
[1744121167727,0.02319544,80152.0,80151.0,0.00075183]
[1744121167940,0.262001,80153.0,80151.0,0.00075183]
[1744121168237,0.47873464,80152.0,80151.0,0.00075183]
[1744121168437,0.352476,80150.0,80149.0,6.3e-07]
[1744121168706,0.602056,80135.0,80134.0,0.0003358]
[1744121168908,0.72831464,80135.0,80134.0,8e-07]
[1744121169137,0.60208,80128.0,80111.0,0.004]
[1744121169343,0.35248,80127.0,80121.0,6e-07]
[1744121169549,0.602099,80122.0,80121.0,6e-07]
[1744121169748,0.602132,80112.0,80111.0,0.004]
[1744121170151,0.012483,80104.0,80082.0,0.41385873]
[1744121170353,0.72841664,80104.0,80081.0,0.004]
[1744121170690,0.602158,80104.0,80083.0,0.24974]
[1744121170896,0.602158,80104.0,80103.0,0.00046076]
[1744121171095,0.262231,80082.0,80081.0,0.004]
[1744121171301,0.262231,80082.0,80081.0,0.0041248]
[1744121172586,0.001,80082.0,80081.0,0.0101248]
[1744121172868,0.013487,80082.0,80081.0,0.0041248]
[1744121173207,0.013487,80082.0,80081.0,0.0071248]
[1744121173409,0.001,80082.0,80081.0,0.0071248]
[1744121173653,0.013487,80082.0,80081.0,0.0071248]
[1744121174951,0.353487,80082.0,80081.0,0.0071248]
[1744121175154,0.262256,80074.0,80073.0,0.98702766]
[1744121175353,0.38851464,80074.0,80073.0,0.98702766]
[1744121175586,0.001,80082.0,80078.0,0.012487]
[1744121175945,0.249764,80076.0,80073.0,0.98702766]
[1744121176149,0.262252,80076.0,80073.0,0.98702766]
[1744121176429,0.001,80074.0,80073.0,0.99002766]
[1744121176634,0.353488,80074.0,80073.0,0.99002766]
[1744121176774,0.47974664,80074.0,80073.0,0.42521866]
[1744121176970,0.352488,80074.0,80073.0,0.42221866]
[1744121177375,0.34,80074.0,80073.0,0.42521866]
[1744121177574,0.34,80077.0,80073.0,0.42521866]
[1744121177814,0.001,80082.0,80076.0,0.012488]
[1744121178015,0.012486,80086.0,80078.0,0.012487]
[1744121178190,0.34,80081.0,80073.0,0.68747666]
[1744121178404,0.352487,80081.0,80073.0,0.42521866]
[1744121178604,0.352487,80081.0,80073.0,0.67198966]
[1744121178803,0.249728,80087.0,80081.0,0.249745]
[1744121179014,0.012485,80091.0,80081.0,0.249745]
[1744121179015,0.012484,80098.0,80089.0,0.012486]
[1744121179264,0.249707,80094.0,80087.0,0.262211]
[1744121179450,0.012485,80094.0,80087.0,0.12625864]
[1744121179625,0.262231,80082.0,80081.0,0.41385873]
[1744121180026,0.249737,80084.0,80081.0,0.41385873]
[1744121180282,0.65428414,80091.0,80083.0,0.012487]
[1744121180419,0.66676914,80091.0,80085.0,0.249734]
[1744121180602,0.602182,80097.0,80088.0,0.012486]
[1744121180809,0.352485,80094.0,80088.0,0.12625864]
[1744121181008,0.012486,80086.0,80081.0,0.41385873]
[1744121181338,0.262208,80089.0,80081.0,0.41385873]
[1744121181546,0.012485,80094.0,80081.0,0.41385873]
[1744121181547,0.012485,80094.0,80085.0,0.001]
[1744121181806,0.249741,80083.0,80081.0,0.41385873]
[1744121182173,0.262228,80083.0,80081.0,0.41685873]
[1744121182379,0.24973,80087.0,80081.0,0.41385873]
[1744121182574,0.00012432,80100.0,80095.0,0.249703]
[1744121182774,0.00012432,80100.0,80092.0,0.249709]
[1744121183073,0.00012432,80100.0,80095.0,0.249702]
[1744121183287,0.00012432,80100.0,80096.0,0.012485]
[1744121183511,0.00012432,80100.0,80099.0,0.012484]
[1744121183860,0.00012432,80100.0,80099.0,0.262175]
[1744121184074,0.00012432,80100.0,80098.0,0.249693]
[1744121184399,0.00412432,80100.0,80099.0,0.13874264]
[1744121184603,0.00012432,80100.0,80099.0,0.55509802]
[1744121184807,0.00012432,80100.0,80099.0,0.55260137]
[1744121185011,0.00112432,80100.0,80099.0,0.54011737]
[1744121185209,0.00112432,80100.0,80099.0,0.55260137]
[1744121185557,0.01360832,80100.0,80099.0,0.41585873]
[1744121185906,0.00212432,80100.0,80099.0,0.41585873]
[1744121186108,0.00212432,80100.0,80099.0,0.67803373]
[1744121186277,0.00112432,80100.0,80099.0,0.41585873]
[1744121186474,0.00112432,80100.0,80099.0,0.54211737]
[1744121186789,0.00112432,80100.0,80099.0,0.55760137]
[1744121186989,0.00112432,80100.0,80099.0,0.54511737]
[1744121187213,0.01360832,80100.0,80099.0,0.41585873]
[1744121187421,0.01360832,80100.0,80099.0,0.41885873]
[1744121188046,0.00012432,80100.0,80099.0,0.55560137]
[1744121188210,0.00012432,80100.0,80099.0,0.41685873]
[1744121188674,0.00012432,80100.0,80099.0,0.41785873]
[1744121188882,0.00012432,80100.0,80099.0,0.41485873]
[1744121189087,0.35260832,80100.0,80099.0,0.41485873]
[1744121189256,0.35260832,80100.0,80099.0,0.41385873]
[1744121189564,0.35260832,80100.0,80099.0,0.41885873]
[1744121189772,0.012485,80096.0,80089.0,0.012486]
[1744121189994,1.995,80099.0,80098.0,0.249694]
[1744121190201,1.995,80099.0,80098.0,0.262178]
[1744121190897,1.995,80099.0,80092.0,0.249707]
[1744121191134,1.995,80099.0,80095.0,0.262186]
[1744121191341,1.995,80099.0,80098.0,0.012484]
[1744121191547,1.995,80099.0,80098.0,0.54011737]
[1744121191782,1.995,80099.0,80014.0,0.06297193]
[1744121191783,0.012486,80087.0,80086.0,0.41385873]
[1744121191984,0.26225,80076.0,80075.0,0.41385873]
[1744121193578,0.28539395,80076.0,80075.0,0.41385873]
[1744121193781,0.28939395,80076.0,80075.0,0.41485873]
[1744121193984,0.28939395,80076.0,80075.0,0.001]
[1744121194191,0.62939395,80076.0,80075.0,0.001]
[1744121194368,0.602266,80071.0,80070.0,0.000336]
[1744121194584,0.262316,80056.0,80055.0,0.0003362]
[1744121194763,0.602316,80056.0,80055.0,0.0003362]
[1744121194961,0.262316,80056.0,80055.0,0.0003362]
[1744121195188,0.28545995,80056.0,80055.0,0.0003362]
[1744121195461,0.29639084,80056.0,80055.0,0.0003362]
[1744121195660,0.28545995,80056.0,80055.0,0.00075246]
[1744121196101,0.28545995,80056.0,80055.0,0.00175246]
[1744121196452,0.28545995,80056.0,80055.0,0.00275246]
[1744121196789,0.02314395,80056.0,80055.0,0.00275246]
[1744121196989,0.02314395,80056.0,80055.0,0.1290111]
[1744121197188,0.02314395,80056.0,80055.0,0.00275246]
[1744121197189,0.03563495,80056.0,80055.0,0.00275246]
[1744121197756,0.02314395,80056.0,80055.0,0.01524346]
[1744121197959,0.02314395,80056.0,80055.0,0.00275246]
[1744121198293,0.02314395,80056.0,80055.0,0.15854114]
[1744121198498,0.249825,80056.0,80055.0,0.1290111]
[1744121198697,0.262316,80056.0,80055.0,0.00275246]
[1744121199221,0.262316,80056.0,80055.0,0.00175246]
[1744121199222,0.602316,80056.0,80055.0,0.00175246]
[1744121199624,0.34,80056.0,80055.0,0.00175246]
[1744121199822,0.341,80056.0,80055.0,0.00275246]
[1744121200207,0.002,80056.0,80055.0,0.1310111]
[1744121200597,0.354491,80056.0,80055.0,0.00475246]
[1744121201197,0.353491,80056.0,80055.0,0.00275246]
[1744121201401,0.352491,80056.0,80055.0,0.00075246]
[1744121201770,0.352491,80056.0,80055.0,0.00175246]
[1744121202570,0.357491,80056.0,80055.0,0.00075246]
[1744121202782,0.023491,80056.0,80055.0,0.00075246]
[1744121203195,0.363491,80056.0,80055.0,0.00075246]
[1744121204386,0.011,80056.0,80055.0,0.00075246]
[1744121204769,0.011,80056.0,80055.0,0.15404295]
[1744121205174,0.363491,80056.0,80055.0,0.00075246]
[1744121205592,0.352491,80056.0,80055.0,0.00075246]
[1744121206090,0.357491,80056.0,80055.0,0.00075246]
[1744121206545,0.597825,80056.0,80055.0,0.00075246]
[1744121206787,0.610316,80056.0,80055.0,0.00075246]
[1744121207252,0.605316,80056.0,80055.0,0.00075246]
[1744121207725,0.005,80056.0,80055.0,0.1270111]
[1744121207951,0.267316,80056.0,80055.0,0.00075246]
[1744121208175,0.271316,80056.0,80055.0,0.00075246]
[1744121208404,0.602316,80056.0,80055.0,0.00075246]
[1744121208682,0.63049509,80056.0,80055.0,0.00075246]
[1744121209151,0.262302,80061.0,80055.0,0.00075246]
[1744121209152,0.012489,80070.0,80058.0,0.01249]
[1744121209356,0.249806,80062.0,80059.0,0.12625864]
[1744121209528,0.262316,80056.0,80055.0,0.00075246]
[1744121209730,0.262316,80056.0,80055.0,0.1270111]
[1744121210541,0.262316,80056.0,80055.0,0.00075246]
[1744121211609,0.004,80056.0,80055.0,0.00075246]
[1744121212132,0.02317637,80059.0,80057.0,0.249822]
[1744121212460,0.249809,80062.0,80058.0,0.01249]
[1744121212688,0.249812,80060.0,80057.0,0.37608064]
[1744121213270,0.249812,80060.0,80057.0,0.12625864]
[1744121213469,0.249818,80058.0,80057.0,0.12625864]
[1744121213687,0.262316,80056.0,80055.0,0.00075246]
[1744121213896,0.602316,80056.0,80055.0,0.00075246]
[1744121214110,0.604316,80056.0,80055.0,0.00075246]
[1744121214316,0.602316,80056.0,80055.0,0.00075246]
[1744121215134,0.606316,80056.0,80055.0,0.00075246]
[1744121215378,0.348,80056.0,80055.0,0.00075246]
[1744121215571,0.012489,80065.0,80055.0,0.01324346]
[1744121215781,0.249825,80056.0,80055.0,0.00075246]
[1744121215930,0.620316,80056.0,80055.0,0.00075246]
[1744121216854,0.607825,80056.0,80055.0,0.00075246]
[1744121217105,0.611316,80056.0,80055.0,0.00075246]
[1744121217642,0.602316,80056.0,80055.0,0.00075246]
[1744121218046,0.606316,80056.0,80055.0,0.00075246]
[1744121218255,0.602319,80055.0,80054.0,2.6e-07]
[1744121218447,0.602319,80055.0,80054.0,0.00012506]
[1744121218448,0.72857764,80055.0,80054.0,0.00012506]
[1744121218635,0.602328,80052.0,80051.0,6e-08]
[1744121218830,0.62555618,80052.0,80051.0,6e-08]
[1744121219059,0.75181482,80052.0,80051.0,6e-08]
[1744121219877,0.75181482,80052.0,80048.0,8.6e-07]
[1744121219878,0.602338,80049.0,80048.0,8.6e-07]
[1744121220148,0.75182482,80049.0,80048.0,8.6e-07]
[1744121220352,0.62556618,80049.0,80048.0,8.6e-07]
[1744121221086,0.03122818,80049.0,80048.0,8.6e-07]
[1744121221284,0.04372018,80049.0,80048.0,8.6e-07]
[1744121221484,0.03122818,80049.0,80048.0,8.6e-07]
[1744121221709,0.04372018,80049.0,80048.0,8.6e-07]
[1744121221915,0.05172018,80049.0,80048.0,8.6e-07]
[1744121222356,0.39172018,80049.0,80048.0,8.6e-07]
[1744121222513,0.63356618,80049.0,80048.0,8.6e-07]
[1744121222713,0.63856618,80049.0,80048.0,8.6e-07]
[1744121222922,0.63856618,80049.0,80037.0,0.0003374]
[1744121222923,0.262364,80041.0,80037.0,0.0003374]
[1744121223123,0.262364,80041.0,80028.0,0.02]
[1744121223124,0.352495,80029.0,80028.0,0.02]
[1744121223344,0.94761082,80029.0,80028.0,0.02]
[1744121223771,0.94761082,80029.0,80022.0,0.0003372]
[1744121223772,0.602424,80023.0,80022.0,0.0003372]
[1744121223934,0.72868264,80023.0,80022.0,0.0003372]
[1744121224099,0.75191082,80023.0,80022.0,0.0003372]
[1744121224306,0.75191082,80023.0,80012.0,2e-07]
[1744121224307,0.602456,80013.0,80012.0,2e-07]
[1744121224553,0.72871464,80013.0,80012.0,2e-07]
[1744121224761,0.602495,80001.0,80000.0,6e-07]
[1744121224960,0.602495,80001.0,79989.0,7.2e-07]
[1744121224961,0.012501,79990.0,79989.0,7.2e-07]
[1744121225134,0.72879064,79990.0,79989.0,7.2e-07]
[1744121225512,0.36322818,79990.0,79989.0,7.2e-07]
[1744121225715,0.36322818,79990.0,79989.0,0.26266065]
[1744121225716,0.02322818,79990.0,79989.0,0.26266065]
[1744121225889,0.250008,79998.0,79993.0,0.012501]
[1744121226084,0.250021,79993.0,79989.0,0.00012565]
[1744121226235,0.250018,79995.0,79990.0,0.012501]
[1744121226591,0.012501,79992.0,79989.0,0.00012565]
[1744121226791,0.262524,79993.0,79989.0,0.00012565]
[1744121226997,0.34,79997.0,79989.0,0.26265965]
[1744121227233,0.250015,79995.0,79989.0,0.01262665]
[1744121227437,0.250025,79992.0,79989.0,0.00012565]
[1744121227670,0.26253,79991.0,79989.0,0.00012565]
[1744121227859,0.012501,79990.0,79989.0,0.00012565]
[1744121228226,0.014501,79990.0,79989.0,0.00012565]
[1744121228435,0.002,79990.0,79989.0,0.00012565]
[1744121228643,0.012501,79990.0,79989.0,0.00012565]
[1744121228864,0.004,79991.0,79989.0,0.00012565]
[1744121229072,0.262532,79990.0,79989.0,0.00012565]
[1744121229268,0.602532,79990.0,79989.0,0.00012565]
[1744121229625,0.602532,79990.0,79989.0,0.00012493]
[1744121230429,0.604532,79990.0,79989.0,0.00012493]
[1744121230636,0.72879064,79990.0,79989.0,9.3e-07]
[1744121230840,0.602555,79983.0,79982.0,9.3e-07]
[1744121231065,0.602578,79976.0,79975.0,0.00029633]
[1744121231270,0.602578,79976.0,79961.0,0.004]
[1744121231271,0.012505,79968.0,79961.0,0.004]
[1744121231477,0.250167,79947.0,79940.0,0.012509]
[1744121231679,0.34,79949.0,79944.0,0.262683]
[1744121231877,0.262681,79945.0,79938.0,0.012509]
[1744121232186,0.250177,79944.0,79940.0,0.00041675]
[1744121232381,0.262685,79944.0,79940.0,0.00041675]
[1744121232588,0.65428414,79950.0,79946.0,0.012508]
[1744121232888,0.012507,79955.0,79948.0,0.262667]
[1744121233005,0.250144,79954.0,79949.0,0.262665]
[1744121233405,0.250151,79952.0,79949.0,0.250158]
[1744121233625,0.352507,79955.0,79948.0,0.012508]
[1744121233829,0.012507,79952.0,79945.0,0.012508]
[1744121234073,0.012506,79956.0,79948.0,0.262669]
[1744121234263,0.250134,79957.0,79948.0,0.262669]
[1744121234467,0.262675,79947.0,79945.0,0.12625864]
[1744121234693,0.001,79945.0,79940.0,0.01292575]
[1744121234916,0.012509,79941.0,79940.0,0.00041675]
[1744121235379,0.34,79949.0,79945.0,0.012508]
[1744121235584,0.262667,79949.0,79948.0,0.001]
[1744121235993,0.262667,79949.0,79944.0,0.250173]
[1744121236184,0.012508,79947.0,79940.0,0.00041675]
[1744121236390,0.001,79941.0,79940.0,0.00141675]
[1744121237213,0.001,79941.0,79940.0,0.14018439]
[1744121237783,0.250167,79947.0,79941.0,0.262693]
[1744121237979,0.012507,79951.0,79944.0,0.012508]
[1744121238179,0.250169,79946.0,79944.0,0.001]
[1744121238381,0.250169,79947.0,79944.0,0.001]
[1744121238585,0.250169,79947.0,79940.0,0.00041675]
[1744121238586,0.250172,79945.0,79940.0,0.00041675]
[1744121238782,0.65428414,79950.0,79940.0,0.12667539]
[1744121239012,0.250182,79942.0,79940.0,0.00041675]
[1744121239210,0.012509,79941.0,79940.0,0.00041675]
[1744121239791,0.250174,79945.0,79941.0,0.012509]
[1744121239792,0.001,79945.0,79941.0,0.012509]
[1744121239990,0.001,79945.0,79942.0,0.250181]
[1744121240196,0.250184,79941.0,79940.0,0.00041675]
[1744121240401,0.606693,79941.0,79940.0,0.00041675]
[1744121240712,0.602693,79941.0,79940.0,0.00041675]
[1744121241032,0.72895164,79941.0,79940.0,0.00041675]
[1744121241236,0.262716,79934.0,79914.0,0.19056]
[1744121241593,0.72897464,79934.0,79933.0,0.00020486]
[1744121241993,0.602722,79932.0,79931.0,8.6e-07]
[1744121242123,0.72898064,79932.0,79931.0,0.00012591]
[1744121242357,0.34,79932.0,79931.0,0.00012591]
[1744121242553,0.602722,79932.0,79931.0,0.00012591]
[1744121242980,0.72898064,79932.0,79931.0,0.00012591]
[1744121243603,0.73098064,79932.0,79931.0,1e-08]
[1744121243806,0.262742,79926.0,79925.0,1e-08]
[1744121244004,0.72900064,79926.0,79925.0,1e-08]
[1744121244985,0.72900064,79926.0,79925.0,0.00100001]
[1744121245628,0.72900064,79926.0,79925.0,1e-08]
[1744121246142,0.73400064,79926.0,79925.0,1e-08]
[1744121247170,0.76293625,79926.0,79925.0,1e-08]
[1744121247392,0.75693625,79926.0,79925.0,1e-08]
[1744121247797,0.76093625,79926.0,79925.0,1e-08]
[1744121248038,0.75893625,79926.0,79925.0,1e-08]